bitfinex-derivatives/quotes_ETHF0:USTF0_20250322
["timestamp","ask_amount","ask_price","bid_price","bid_amount"]
[1742639848803,2.39659691,1997.2,1997.1,1.00183]
[1742639850092,1.39481691,1997.2,1996.9,4.20888]
[1742639850303,1.00188,1997.0,1996.9,1.00188]
[1742639850802,2.29648,1997.0,1996.9,1.00188]
[1742639853006,1.2946,1997.0,1996.9,1.00188]
[1742639853207,1.2946,1997.0,1996.9,2.40718]
[1742639860608,2.29648,1997.0,1996.9,1.00188]
[1742639860809,1.00193,1996.9,1996.8,3.2078]
[1742639861020,2.38193,1996.9,1996.8,3.2078]
[1742639862006,2.38193,1996.9,1996.8,4.20978]
[1742639862416,1.38,1996.9,1996.8,5.60128]
[1742639863007,2.38193,1996.9,1996.8,5.60128]
[1742639863207,1.38,1996.9,1996.8,5.60128]
[1742639864112,2.38193,1996.9,1996.8,5.60128]
[1742639864308,1.38,1996.9,1996.8,5.60128]
[1742639867328,1.38,1996.9,1996.8,6.27658]
[1742639875128,1.00930691,1997.2,1996.9,2.50481]
[1742639875323,1.00930691,1997.2,1997.1,1.00183]
[1742639875526,2.35720691,1997.2,1997.1,1.00183]
[1742639875726,1.00187,1997.1,1997.0,1.00184]
[1742639876431,2.31747,1997.1,1997.0,2.38384]
[1742639877539,1.3156,1997.1,1997.0,2.38384]
[1742639878236,1.3156,1997.1,1997.0,5.59164]
[1742639878535,1.35541691,1997.2,1997.1,1.00183]
[1742639878536,0.00751691,1997.2,1997.1,1.00183]
[1742639878836,0.00751691,1997.2,1997.1,3.73563]
[1742639879740,0.00751691,1997.2,1997.1,6.94263]
[1742639881635,1.3874,1997.8,1997.7,1.00153]
[1742639881940,0.6898,1997.8,1997.7,1.00153]
[1742639882740,0.6898,1997.8,1997.7,2.40613]
[1742639883432,1.9949,1997.8,1997.7,2.40613]
[1742639883835,1.3051,1997.8,1997.7,5.61393]
[1742639884040,0.00751691,1997.9,1997.8,1.00148]
[1742639884249,0.00751691,1997.9,1997.8,2.40608]
[1742639885738,1.38181691,1997.9,1997.8,2.40608]
[1742639885949,2.38324691,1997.9,1997.8,2.40608]
[1742639887147,1.38181691,1997.9,1997.8,2.40608]
[1742639887851,0.00751691,1997.9,1997.8,2.40608]
[1742639888338,1.38181691,1997.9,1997.8,2.40608]
[1742639889841,0.00751691,1997.9,1997.8,2.40608]
[1742639890349,5.968,1998.2,1998.1,1.00133]
[1742639890548,1.00124,1998.3,1998.2,1.00123]
[1742639890949,2.39024,1998.3,1998.2,2.35333]
[1742639892549,1.389,1998.3,1998.2,2.35333]
[1742639892754,2.39023,1998.3,1998.2,2.35333]
[1742639893554,1.00128,1998.2,1998.1,1.0013]
[1742639893740,3.05368,1998.2,1998.1,1.0013]
[1742639893946,1.00133,1998.1,1998.0,1.00138]
[1742639894253,3.05213,1998.1,1998.0,1.00138]
[1742639894748,1.00138,1998.0,1997.9,3.206]
[1742639894954,2.37288,1998.0,1997.9,1.00139]
[1742639895349,1.00143,1997.9,1997.8,5.57754]
[1742639895655,3.03863,1997.9,1997.8,4.20744]
[1742639896953,2.0372,1997.9,1997.8,4.20744]
[1742639897354,2.0372,1997.9,1997.8,5.53404]
[1742639897548,2.0372,1997.9,1997.8,2.32804]
[1742639898158,3.03863,1997.9,1997.8,2.32804]
[1742639898762,3.03863,1997.9,1997.8,1.00144]
[1742639899356,1.00148,1997.8,1997.7,5.5256]
[1742639899559,2.96998,1997.8,1997.7,5.5256]
[1742639899755,1.00153,1997.7,1997.6,0.00751691]
[1742639900059,2.32053,1997.7,1997.6,0.00751691]
[1742639900259,2.32053,1997.7,1997.6,1.00909691]
[1742639901064,1.319,1997.7,1997.6,1.00909691]
[1742639901462,1.319,1997.7,1997.6,1.71129691]
[1742639901857,2.32053,1997.7,1997.6,1.71129691]
[1742639902261,5.968,1998.3,1997.6,7.12251691]
[1742639902466,1.00144,1997.9,1997.8,1.00144]
[1742639902863,1.00153,1997.7,1997.6,1.00908691]
[1742639903769,2.29223,1997.7,1997.6,1.00908691]
[1742639903961,1.2907,1997.7,1997.6,1.00908691]
[1742639904161,1.2907,1997.7,1997.6,2.33558691]
[1742639906165,1.2907,1997.7,1997.6,5.54058691]
[1742639907874,0.6787,1998.0,1997.9,1.00143]
[1742639908173,1.00137,1998.1,1997.7,2.50375]
[1742639908174,0.6976,1998.1,1998.0,1.00138]
[1742639909374,1.9659,1998.1,1998.0,3.07488]
[1742639909867,2.96723,1998.1,1998.0,2.37388]
[1742639910572,2.96723,1998.1,1998.0,1.00138]
[1742639911572,2.96723,1998.1,1998.0,2.33928]
[1742639912073,1.2683,1998.1,1998.0,2.33928]
[1742639912566,1.2683,1998.1,1998.0,5.54428]
[1742639912765,0.6578,1998.3,1998.2,1.00128]
[1742639912975,1.65903,1998.3,1998.2,1.00128]
[1742639914067,3.01973,1998.3,1998.2,2.28918]
[1742639915569,2.0185,1998.3,1998.2,2.28918]
[1742639919876,3.01973,1998.3,1998.2,2.28918]
[1742639923683,2.0185,1998.3,1998.2,2.28918]
[1742639924087,1.3607,1998.3,1998.2,2.28918]
[1742639926088,2.36193,1998.3,1998.2,2.28918]
[1742639926288,1.3607,1998.3,1998.2,2.28918]
[1742639926489,2.36193,1998.3,1998.2,2.28918]
[1742639927383,2.36193,1998.3,1998.2,1.00128]
[1742639927686,3.67313,1998.3,1998.2,1.00128]
[1742639929177,1.00128,1998.2,1998.1,1.00129]
[1742639929384,2.35488,1998.2,1998.1,1.00129]
[1742639930074,2.35488,1998.2,1998.1,2.35499]
[1742639930274,2.35488,1998.2,1998.0,1.00134]
[1742639930275,1.00133,1998.1,1998.0,1.00134]
[1742639930484,1.00138,1998.0,1997.9,4.20919]
[1742639930686,2.36738,1998.0,1997.9,4.20919]
[1742639930991,2.36738,1998.0,1997.9,5.56289]
[1742639932381,1.366,1998.0,1997.9,5.56289]
[1742639933491,1.366,1998.0,1997.9,2.35509]
[1742639933791,1.3747,1998.0,1997.9,5.56289]
[1742639933994,3.14686115,1998.3,1998.2,1.00128]
[1742639934288,3.66807,1998.3,1998.2,1.00128]
[1742639935292,2.6668,1998.3,1998.2,1.00128]
[1742639935495,3.66803,1998.3,1998.2,1.00128]
[1742639935684,2.6668,1998.3,1998.2,1.00128]
[1742639939990,2.6668,1998.3,1998.2,2.30268]
[1742639941999,3.66803,1998.3,1998.2,2.30268]
[1742639942886,2.6668,1998.3,1998.2,2.30268]
[1742639943493,3.66803,1998.3,1998.2,2.30268]
[1742639944096,2.6668,1998.3,1998.2,2.30268]
[1742639946897,1.3274,1998.3,1998.2,2.30268]
[1742639949797,2.32863,1998.3,1998.2,2.30268]
[1742639950096,2.32863,1998.3,1998.2,1.00128]
[1742639950694,2.32863,1998.3,1998.2,2.30238]
[1742639955107,2.32863,1998.3,1998.2,1.00128]
[1742639955414,1.00142,1998.0,1997.9,1.0014]
[1742639955618,3.37136558,1998.2,1997.9,1.0014]
[1742639955913,2.27287,1998.1,1998.0,1.00134]
[1742639956117,3.08063558,1998.1,1998.0,1.00134]
[1742639956922,1.00148,1997.9,1997.8,1.00145]
[1742639957121,1.00148,1997.8,1997.7,1.0015]
[1742639957420,2.91608,1997.8,1997.7,2.3073]
[1742639958517,1.9146,1997.8,1997.7,2.3073]
[1742639958716,1.9146,1997.8,1997.7,2.9423]
[1742639959221,2.91608,1997.8,1997.7,2.9423]
[1742639962813,1.9146,1997.8,1997.7,2.9423]
[1742639963108,2.91608,1997.8,1997.7,2.9423]
[1742639967018,2.91608,1997.8,1997.6,0.00751691]
[1742639967019,1.00153,1997.7,1997.6,0.00751691]
[1742639967224,2.32493,1997.7,1997.6,1.00909691]
[1742639968328,1.3234,1997.7,1997.6,1.00909691]
[1742639968529,2.32493,1997.7,1997.6,1.00909691]
[1742639969025,1.3234,1997.7,1997.6,1.00909691]
[1742639969325,1.3234,1997.7,1997.6,1.70789691]
[1742639969531,1.3234,1997.7,1997.6,3.01119691]
[1742639970429,6.96946,1997.9,1997.8,1.00148]
[1742639971725,8.26416,1997.9,1997.8,1.00148]
[1742639972222,8.26416,1997.9,1997.8,4.20928]
[1742639972223,7.2627,1997.9,1997.8,4.20928]
[1742639972616,7.2627,1997.9,1997.8,6.15888]
[1742639974025,1.2947,1997.9,1997.8,6.15888]
[1742639974222,1.2947,1997.9,1997.8,2.95108]
[1742639987648,0.7014,1998.2,1998.1,1.00133]
[1742639987846,3.05478,1998.2,1998.1,1.00133]
[1742639988143,2.0535,1998.2,1998.1,1.00133]
[1742639988645,1.3521,1998.2,1998.1,1.68143]
[1742639989344,1.3521,1998.2,1998.1,4.88923]
[1742639989556,1.3521,1998.2,1998.1,1.68143]
[1742639989946,2.35338,1998.2,1998.1,1.00133]
[1742639990153,3.05428,1998.2,1998.1,1.00133]
[1742639990744,1.00133,1998.1,1998.0,1.3957]
[1742639990937,1.2927,1998.1,1997.7,7.7132]
[1742639991153,1.00143,1997.9,1997.8,2.30014]
[1742639991353,1.00143,1997.9,1997.8,1.00144]
[1742639991648,2.29413,1997.9,1997.8,2.30014]
[1742639991851,2.95353,1997.9,1997.8,2.30014]
[1742639993944,1.9521,1997.9,1997.8,2.30014]
[1742640000946,1.9521,1997.9,1997.8,1.00144]
[1742640001345,1.9521,1997.9,1997.8,2.27794]
[1742640002947,5.968,1998.1,1998.0,1.00138]
[1742640003149,7.46393677,1998.1,1998.0,1.00138]
[1742640004059,13.17173677,1998.1,1997.6,0.00751691]
[1742640004269,1.00147,1997.9,1997.7,1.00151]
[1742640004457,2.0337,1997.8,1997.7,1.00151]
[1742640004753,3.67108,1997.8,1997.7,1.00151]
[1742640005357,3.67108,1997.8,1997.6,1.67135691]
[1742640005547,1.3443,1997.7,1997.6,1.67135691]
[1742640005748,2.34583,1997.7,1997.6,1.67135691]
[1742640005953,1.3443,1997.7,1997.6,1.67135691]
[1742640007060,2.34583,1997.7,1997.6,1.67135691]
[1742640008752,2.34583,1997.7,1997.6,0.66981691]
[1742640008959,2.34583,1997.7,1997.6,0.00751691]
[1742640022365,2.34583,1997.7,1997.6,1.29521691]
[1742640023170,2.34583,1997.7,1997.6,2.29679691]
[1742640023365,2.34583,1997.7,1997.6,1.29521691]
[1742640023570,2.34583,1997.7,1997.6,2.29679691]
[1742640024471,1.3443,1997.7,1997.6,2.29679691]
[1742640026581,2.34583,1997.7,1997.6,2.29679691]
[1742640026784,1.3443,1997.7,1997.6,2.29679691]
[1742640028076,1.3443,1997.7,1997.6,5.50459691]
[1742640028491,2.34583,1997.7,1997.6,5.50459691]
[1742640028690,2.34583,1997.7,1997.6,2.29679691]
[1742640029092,2.34583,1997.7,1997.6,1.29521691]
[1742640029283,2.34583,1997.7,1997.6,2.29679691]
[1742640033193,1.3443,1997.7,1997.6,2.29679691]
[1742640033587,1.3443,1997.7,1997.6,2.93629691]
[1742640034497,1.3443,1997.7,1997.6,6.14029691]
[1742640034694,1.3443,1997.7,1997.6,9.34809691]
[1742640035292,2.34583,1997.7,1997.6,9.34809691]
[1742640036093,1.3443,1997.7,1997.6,6.14409691]
[1742640036293,1.3443,1997.7,1997.6,9.34809691]
[1742640038497,1.00134,1998.1,1998.0,1.00138]
[1742640038703,3.16581213,1998.1,1998.0,1.00138]
[1742640038892,2.35654,1998.1,1998.0,1.00138]
[1742640039093,2.35654,1998.1,1998.0,3.01738]
[1742640040102,2.16408813,1998.1,1998.0,9.42918]
[1742640040295,1.3552,1998.1,1998.0,9.42918]
[1742640040801,2.35653,1998.1,1998.0,9.42918]
[1742640041200,1.3552,1998.1,1998.0,9.42918]
[1742640042604,5.968,1998.3,1998.2,1.00128]
[1742640042806,1.404,1998.3,1998.2,4.20528]
[1742640043105,2.40523,1998.3,1998.2,4.20528]
[1742640043293,3.75393,1998.3,1998.2,4.20528]
[1742640044406,2.7527,1998.3,1998.2,4.20528]
[1742640046205,2.0742,1998.3,1998.2,4.20528]
[1742640046607,2.0742,1998.3,1998.2,4.86448]
[1742640047411,2.0742,1998.3,1998.2,8.07228]
[1742640047611,1.404,1998.3,1998.2,8.07228]
[1742640047911,0.00494804,1998.4,1998.3,1.00123]
[1742640048113,0.00494804,1998.4,1998.3,3.02143]
[1742640049313,5.8590621,1998.8,1998.7,1.00103]
[1742640049501,7.1434621,1998.8,1998.7,4.20403]
[1742640050002,1.2844,1998.8,1998.7,5.54303]
[1742640054614,6.96873,1999.3,1999.2,1.00078]
[1742640054916,1.3843,1999.1,1999.0,1.00088]
[1742640055111,1.3843,1999.1,1999.0,6.24778]
[1742640057714,2.38513,1999.1,1999.0,2.37198]
[1742640057916,2.38513,1999.1,1999.0,5.57398]
[1742640058814,1.3843,1999.1,1999.0,5.57398]
[1742640059126,2.38513,1999.1,1999.0,5.57398]
[1742640059323,1.3843,1999.1,1999.0,5.57398]
[1742640059523,2.38513,1999.1,1999.0,5.57398]
[1742640060215,1.3843,1999.1,1999.0,5.57398]
[1742640060527,2.38513,1999.1,1999.0,5.57398]
[1742640060715,2.38513,1999.1,1999.0,2.37198]
[1742640061022,2.38513,1999.1,1999.0,5.57398]
[1742640061322,1.3843,1999.1,1999.0,5.57398]
[1742640061519,5.968,1999.4,1999.0,7.07525]
[1742640061721,3.62713,1999.3,1999.2,1.00078]
[1742640063226,3.62713,1999.3,1999.2,2.39578]
[1742640063426,3.62713,1999.3,1999.2,1.00078]
[1742640064019,3.62713,1999.3,1999.2,2.39578]
[1742640064420,2.6264,1999.3,1999.2,2.39578]
[1742640064722,1.9407,1999.3,1999.2,2.39578]
[1742640064926,1.9407,1999.3,1999.2,5.60978]
[1742640065114,1.281,1999.3,1999.2,5.60978]
[1742640065317,1.281,1999.3,1999.2,6.30048]
[1742640066325,1.9312,1999.3,1999.2,6.30048]
[1742640066832,2.93193,1999.3,1999.2,5.60978]
[1742640067222,1.9312,1999.3,1999.2,5.60978]
[1742640067726,1.9312,1999.3,1999.2,5.61078]
[1742640069922,1.9312,1999.3,1999.2,6.28508]
[1742640071732,1.281,1999.3,1999.2,6.28508]
[1742640072629,1.3182,1999.6,1999.5,1.00063]
[1742640072835,2.31878,1999.6,1999.5,1.00063]
[1742640073934,2.31878,1999.6,1999.5,2.33243]
[1742640075932,1.3182,1999.6,1999.5,2.33243]
[1742640076427,2.6825,1999.6,1999.5,2.33243]
[1742640076836,2.0068,1999.6,1999.5,2.33243]
[1742640077331,3.00738,1999.6,1999.5,2.33243]
[1742640077635,1.00063,1999.5,1999.4,5.54564]
[1742640077836,3.01403,1999.5,1999.4,5.54564]
[1742640078228,1.00068,1999.4,1999.3,4.20849]
[1742640078427,2.32428,1999.4,1999.3,3.2078]
[1742640078726,1.00078,1999.2,1999.1,1.00079]
[1742640078931,1.00078,1999.2,1999.1,1.00083]
[1742640079334,2.97078,1999.2,1999.1,1.00083]
[1742640079536,1.97,1999.2,1999.1,1.00083]
[1742640079835,1.3236,1999.2,1999.1,4.20863]
[1742640080035,1.3236,1999.2,1999.1,5.54463]
[1742640081236,1.3236,1999.2,1999.1,6.19563]
[1742640082326,0.6464,1999.4,1999.1,6.19563]
[1742640082327,1.80669034,1999.6,1999.2,2.50195]
[1742640082532,1.3395,1999.3,1999.2,4.20578]
[1742640083241,2.34862,1999.6,1999.5,1.00063]
[1742640083639,1.348,1999.6,1999.5,1.00063]
[1742640084740,2.7338,1999.6,1999.5,1.00063]
[1742640085340,3.73438,1999.6,1999.5,1.00063]
[1742640086039,2.7338,1999.6,1999.5,1.00063]
[1742640086743,3.73438,1999.6,1999.5,1.00063]
[1742640088335,2.7338,1999.6,1999.5,1.00063]
[1742640088842,3.73438,1999.6,1999.5,1.00063]
[1742640089541,2.7338,1999.6,1999.5,1.00063]
[1742640090945,2.0798,1999.6,1999.5,4.20843]
[1742640091142,1.3858,1999.6,1999.5,4.20843]
[1742640098151,2.7687,1999.6,1999.5,4.20843]
[1742640102355,2.7687,1999.6,1999.5,5.58963]
[1742640103657,1.00063,1999.5,1999.4,4.20164]
[1742640103857,2.33093,1999.5,1999.4,4.20164]
[1742640104354,2.33093,1999.5,1999.4,1.00064]
[1742640104545,10.5061,1999.5,1998.9,3.21531691]
[1742640104748,1.00088,1999.0,1998.9,6.41631691]
[1742640104950,8.46995,1999.2,1998.9,3.21531691]
[1742640105255,8.46995,1999.2,1998.9,0.00751691]
[1742640105256,1.00088,1999.0,1998.9,0.00751691]
[1742640105458,4.20868,1999.0,1998.9,0.00751691]
[1742640105851,1.00108,1998.6,1998.5,2.3832]
[1742640106151,1.00106,1998.7,1998.6,1.00106]
[1742640106849,2.27186,1998.7,1998.6,2.38316]
[1742640108843,2.27186,1998.7,1998.6,1.3821]
[1742640109048,1.00108,1998.6,1998.5,4.20960691]
[1742640109251,1.3953,1998.6,1998.5,4.20960691]
[1742640109445,2.39638,1998.6,1998.5,5.49630691]
[1742640109645,1.3953,1998.6,1998.5,5.49630691]
[1742640109858,2.39638,1998.6,1998.5,5.49630691]
[1742640110355,2.39638,1998.6,1998.5,3.20851691]
[1742640110751,2.39638,1998.6,1998.5,0.00751691]
[1742640112563,2.39638,1998.6,1998.5,1.30521691]
[1742640112853,2.39638,1998.6,1998.5,2.30634691]
[1742640113447,2.39638,1998.6,1998.5,1.30521691]
[1742640114962,2.39638,1998.6,1998.5,2.30634691]
[1742640115262,1.3953,1998.6,1998.5,2.30634691]
[1742640115848,2.39638,1998.6,1998.5,0.00751691]
[1742640123367,1.00108,1998.6,1998.5,0.00751691]
[1742640123664,3.2078,1999.6,1999.1,2.50202]
[1742640123860,2.501,2000.0,1999.2,10.24755]
[1742640123861,2.36956,1999.7,1999.2,10.24755]
[1742640124062,1.00062,1999.6,1999.4,1.00066]
[1742640124264,1.369,1999.5,1999.4,1.00066]
[1742640125066,2.36965,1999.5,1999.3,4.2197]
[1742640125267,3.05505,1999.5,1999.3,4.2197]
[1742640125972,3.05505,1999.5,1999.4,1.00068]
[1742640126464,2.0544,1999.5,1999.4,1.00068]
[1742640126669,1.369,1999.5,1999.4,2.34658]
[1742640128376,2.36963,1999.5,1999.4,2.34658]
[1742640129570,1.369,1999.5,1999.4,2.34658]
[1742640132582,5.968,1999.6,1999.5,1.00063]
[1742640132882,5.968,1999.6,1999.5,2.30473]
[1742640133676,5.968,1999.6,1999.5,5.52173]
[1742640135071,9.1758,2000.0,1999.7,1.00053]
[1742640135278,10.5186,2000.0,1999.9,1.00043]
[1742640135680,7.3108,2000.0,1999.9,2.36263]
[1742640136685,8.31118,2000.0,1999.9,2.36263]
[1742640136881,7.3108,2000.0,1999.9,2.36263]
[1742640138583,8.31118,2000.0,1999.9,2.36263]
[1742640146288,8.31118,2000.0,1999.9,1.3622]
[1742640147195,1.00048,1999.8,1999.7,0.00751691]
[1742640147895,2.29058,1999.8,1999.7,0.00751691]
[1742640149897,8.25858,1999.8,1999.7,0.00751691]
[1742640150803,1.00063,1999.5,1999.4,1.00066]
[1742640154509,1.00063,1999.5,1999.4,2.29496]
[1742640155596,1.00063,1999.5,1999.4,1.00066]
[1742640157108,1.00068,1999.4,1999.3,2.30250691]
[1742640157305,2.31728,1999.4,1999.3,2.30250691]
[1742640160304,2.31728,1999.4,1999.3,1.00820691]
[1742640161009,2.31728,1999.4,1999.3,2.34120691]
[1742640166409,2.31728,1999.4,1999.3,0.00751691]
[1742640167313,2.31728,1999.4,1999.3,1.00824691]
[1742640168411,2.31728,1999.4,1999.3,0.00751691]
[1742640169214,3.01488,1999.4,1999.3,1.37611691]
[1742640169409,3.01488,1999.4,1999.3,2.37684691]
[1742640170410,8.98288,1999.4,1999.3,2.37684691]
[1742640176916,7.9822,1999.4,1999.3,2.37684691]
[1742640177418,8.98288,1999.4,1999.3,2.37684691]
[1742640177725,7.9822,1999.4,1999.3,2.37684691]
[1742640178109,8.98288,1999.4,1999.3,2.37684691]
[1742640178510,7.9822,1999.4,1999.3,2.37684691]
[1742640178910,8.98288,1999.4,1999.3,2.37684691]
[1742640179319,8.28528,1999.4,1999.3,2.37684691]
[1742640181421,7.2846,1999.4,1999.3,2.37684691]
[1742640182018,5.968,1999.4,1999.3,2.37684691]
[1742640182219,11.53225,1999.5,1999.4,1.00068]
[1742640182419,10.16965,1999.5,1999.4,2.36358]
[1742640185719,1.00068,1999.4,1999.3,1.00820691]
[1742640186524,1.00068,1999.4,1999.3,2.32490691]
[1742640186818,10.16966,1999.5,1999.4,1.00068]
[1742640187023,10.16966,1999.5,1999.4,2.36178]
[1742640201721,10.16966,1999.5,1999.4,1.3611]
[1742640202127,10.16966,1999.5,1999.4,2.36178]
[1742640202526,11.44286,1999.5,1999.4,2.36178]
[1742640203728,7.2412,1999.5,1999.4,2.36178]
[1742640203929,7.2412,1999.5,1999.4,3.02218]
[1742640205235,8.24183,1999.5,1999.4,3.02218]
[1742640205534,7.2412,1999.5,1999.4,3.02218]
[1742640205723,1.2732,1999.5,1999.4,3.02218]
[1742640205927,2.27383,1999.5,1999.4,3.02218]
[1742640206135,1.2732,1999.5,1999.4,3.02218]
[1742640206636,2.27383,1999.5,1999.4,3.02218]
[1742640210538,2.27383,1999.5,1999.4,1.3611]
[1742640212340,2.27383,1999.5,1999.4,2.36178]
[1742640212836,2.27383,1999.5,1999.4,1.3611]
[1742640213040,2.27383,1999.5,1999.4,2.36178]
[1742640214245,2.27383,1999.5,1999.4,1.3611]
[1742640214544,1.00068,1999.4,1999.3,0.00751691]
[1742640214735,3.86168291,1999.4,1999.3,0.00751691]
[1742640215035,3.86168291,1999.4,1999.3,1.30901691]
[1742640215635,3.05328,1999.4,1999.3,2.30974691]
[1742640215933,3.05328,1999.4,1999.3,2.96444691]
[1742640216344,3.05328,1999.4,1999.3,1.30901691]
[1742640216544,3.86143064,1999.4,1999.3,1.30901691]
[1742640216740,3.05328,1999.4,1999.3,2.30974691]
[1742640219347,3.05328,1999.4,1999.3,1.30901691]
[1742640219745,3.86120491,1999.4,1999.3,1.30901691]
[1742640225355,3.05328,1999.4,1999.3,1.30901691]
[1742640225556,3.86096858,1999.4,1999.3,1.30901691]
[1742640226455,3.05328,1999.4,1999.3,1.30901691]
[1742640226859,3.86094721,1999.4,1999.3,1.30901691]
[1742640227059,3.05328,1999.4,1999.3,1.30901691]
[1742640240174,3.86120044,1999.4,1999.3,1.30901691]
[1742640240977,9.82920044,1999.4,1999.3,1.30901691]
[1742640247882,9.82920044,1999.4,1999.1,0.6692]
[1742640248076,1.00078,1999.2,1999.1,1.3805]
[1742640248483,2.30148,1999.2,1999.1,1.3805]
[1742640255088,2.30148,1999.2,1999.1,2.38133]
[1742640257579,2.30148,1999.2,1999.1,1.3805]
[1742640259178,2.30148,1999.2,1999.1,2.38133]
[1742640259576,2.30148,1999.2,1999.1,1.3805]
[1742640260885,2.30148,1999.2,1999.1,2.38133]
[1742640261086,2.30148,1999.2,1999.1,1.3805]
[1742640265689,1.00076,1999.3,1999.2,1.00075]
[1742640265988,6.96872,1999.4,1999.3,1.00073]
[1742640266189,6.96872,1999.4,1999.3,3.05113]
[1742640266385,5.968,1999.4,1999.3,3.05113]
[1742640266690,5.968,1999.4,1999.3,6.25893]
[1742640267185,5.968,1999.4,1999.3,6.90778424]
[1742640268282,5.968,1999.4,1999.3,6.25893]
[1742640270192,1.00063,1999.5,1999.4,1.00068]
[1742640270394,1.00063,1999.5,1999.4,2.31068]
[1742640270888,1.37181691,1999.6,1999.5,1.00063]
[1742640271088,0.00751691,1999.6,1999.5,6.19313]
[1742640277194,1.9832,1999.9,1999.8,1.00048]
[1742640277400,2.98366,1999.9,1999.8,1.00048]
[1742640277900,2.98366,1999.9,1999.8,2.99988]
[1742640284311,2.98366,1999.9,1999.8,1.9994]
[1742640284805,2.98366,1999.9,1999.8,2.99988]
[1742640285111,2.98366,1999.9,1999.8,2.32838]
[1742640285405,3.66086,1999.9,1999.8,2.32838]
[1742640287411,3.66086,1999.9,1999.8,1.3279]
[1742640287804,1.00048,1999.8,1999.7,7.4073]
[1742640288000,2.38208,1999.8,1999.7,8.695]
[1742640289612,1.3816,1999.8,1999.7,8.695]
[1742640290213,2.38208,1999.8,1999.7,8.695]
[1742640291112,2.38208,1999.8,1999.7,5.4872]
[1742640292112,1.3816,1999.8,1999.7,5.4872]
[1742640293212,2.38208,1999.8,1999.7,5.4872]
[1742640294211,1.3816,1999.8,1999.7,5.4872]
[1742640295418,2.38208,1999.8,1999.7,5.4872]
[1742640295915,1.3816,1999.8,1999.7,5.4872]
[1742640296117,2.38208,1999.8,1999.7,5.4872]
[1742640297216,1.3816,1999.8,1999.7,5.4872]
[1742640297821,2.38208,1999.8,1999.7,5.4872]
[1742640298316,2.38208,1999.8,1999.7,8.695]
[1742640299019,1.3537,1999.9,1999.8,1.00043]
[1742640299020,1.00044,1999.9,1999.8,1.00043]
[1742640299318,1.00044,1999.9,1999.8,2.32143]
[1742640299519,1.00048,1999.8,1999.7,3.2078]
[1742640299713,1.63418,1999.8,1999.7,3.2078]
[1742640300014,0.6337,1999.8,1999.5,7.40639]
[1742640300222,1.00058,1999.6,1999.5,7.40639]
[1742640300621,1.00058,1999.6,1999.5,6.4058]
[1742640300819,1.00063,1999.5,1999.4,2.31356]
[1742640301112,0.6337,1999.5,1999.4,2.31356]
[1742640301319,1.63433,1999.5,1999.4,2.31356]
[1742640301517,1.9892,1999.5,1999.4,2.96235717]
[1742640303219,1.3555,1999.5,1999.4,2.96235717]
[1742640303419,1.3455,1999.7,1999.6,1.00058]
[1742640303611,2.34603,1999.7,1999.6,4.20838]
[1742640303817,1.3455,1999.7,1999.6,4.20838]
[1742640304018,2.34603,1999.7,1999.6,4.90648]
[1742640304211,1.3455,1999.7,1999.6,4.90648]
[1742640304625,1.3455,1999.7,1999.6,6.22738]
[1742640305025,2.34603,1999.7,1999.6,6.22738]
[1742640305230,1.3455,1999.7,1999.6,6.22738]
[1742640305612,3.04273,1999.7,1999.6,6.22738]
[1742640305817,2.0422,1999.7,1999.6,6.22738]
[1742640308227,2.0422,1999.7,1999.5,1.00059]
[1742640308525,2.3676,1999.6,1999.5,1.00059]
[1742640313237,1.367,1999.6,1999.5,1.00059]
[1742640313529,0.6752,1999.7,1999.5,1.00059]
[1742640313530,6.96843,1999.9,1999.8,1.00048]
[1742640313726,8.34823,1999.9,1999.8,1.00048]
[1742640314240,6.6591,1999.9,1999.8,4.20828]
[1742640314831,8.0216,1999.9,1999.8,5.60998]
[1742640316536,5.968,1999.9,1999.8,5.60998]
[1742640317239,1.37001691,2000.0,1999.9,1.00043]
[1742640317537,1.37001691,2000.0,1999.9,3.06003]
[1742640317728,1.37001691,2000.0,1999.9,3.74843]
[1742640318638,1.37001691,2000.0,1999.9,6.94643]
[1742640321645,1.00025,2000.3,2000.2,1.00023]
[1742640321837,1.69195,2000.3,2000.2,1.00023]
[1742640322348,0.6917,2000.3,2000.2,1.00023]
[1742640322540,5.968,2000.5,2000.4,1.00017]
[1742640323445,7.9008,2000.5,2000.4,1.00017]
[1742640324737,8.90092,2000.5,2000.4,1.00017]
[1742640325047,1.00022,2000.3,2000.2,1.00025]
[1742640325244,1.3561,2000.4,2000.1,1.00031]
[1742640325444,2.6825,2000.2,2000.1,1.00031]
[1742640325837,1.3561,2000.2,2000.0,3.20551691]
[1742640326142,2.7178,2000.1,2000.0,4.20589691]
[1742640327648,2.7178,2000.1,2000.0,7.41369691]
[1742640329043,5.968,2000.3,2000.2,1.00027]
[1742640330349,7.2761,2000.3,2000.2,1.00027]
[1742640331748,1.3081,2000.3,2000.2,1.00027]
[1742640332846,1.00033,2000.2,2000.1,1.0003]
[1742640333040,1.00033,2000.1,2000.0,0.00751691]
[1742640333245,10.4584,2000.1,1999.7,1.00049]
[1742640333544,1.00053,1999.7,1999.6,1.00055]
[1742640334647,1.32071691,1999.8,1999.5,1.00812691]
[1742640334849,2.29298,1999.6,1999.5,0.00751691]
[1742640335243,2.29298,1999.6,1999.2,1.00075]
[1742640335244,1.00071,1999.4,1999.2,1.00075]
[1742640335547,2.32203,1999.3,1999.2,1.00075]
[1742640337039,2.32203,1999.3,1999.1,4.21610691]
[1742640337245,1.352,1999.2,1999.1,4.21610691]
[1742640338950,2.35278,1999.2,1999.1,4.21610691]